Cogmind - Beta 16 @@@ ROGUE MODE // 2025.12.13 @ 15:19:59 Player: PE-P51 Result: Destroyed self via exploding Nuclear Reactor Performance ------------- Evolutions (0) 0 Regions Visited (1) 200 Robots Destroyed (20) 100 Value Destroyed (514) 514 Prototype IDs (6) 120 Alien Tech Used (0) 0 Bonus (0) 0 TOTAL SCORE: 934 Bonus ------- None Cogmind --------- Core Integrity 0/250 Matter 300/300 Energy 100/100 System Corruption 8% Temperature Warm (117) Movement Core (1450) Ox28 Location -10/Materials Parts ------- > --- POWER (1) -------- (None) > --- PROPULSION (2) --- (None) > --- UTILITY (2) ------ Small Storage Unit Huge Storage Unit > --- WEAPON (2) ------- (None) > --- INVENTORY (25) --- Ion Engine Ion Engine Ion Engine Light Ion Engine Light Ion Engine Light Ion Engine Aluminum Leg Aluminum Leg Wheel Terrain Scanner Weapon Shielding EM Pulse Gun Light Assault Rifle Light Assault Rifle Mining Laser Peak State ------------ > --- POWER ------------ Ion Engine > --- PROPULSION ------- Light Treads Light Treads > --- UTILITY ---------- Small Storage Unit Huge Storage Unit > --- WEAPON ----------- EM Pulse Gun Light Assault Rifle > --- INVENTORY -------- Light Ion Engine Light Ion Engine Light Ion Engine Aluminum Leg Aluminum Leg Weapon Shielding EM Pulse Gun EM Pulse Gun EM Pulse Gun Mining Laser [Rating: 8] Favorites ----------- Power Ion Engine Engine Ion Engine Propulsion Light Treads Treads Light Treads Leg Aluminum Leg Utility Small Storage Unit Storage Small Storage Unit Weapon EM Pulse Gun Energy Gun EM Pulse Gun Ballistic Gun Light Assault Rifle Build | -11 -10 ------- Run | Yrd Mat Slots Evolved . | . . Power . | . . Propulsion . | . . Utility . | . . Weapon . | . . Parts Attached 16 | 6 10 Power 5 | 1 4 Engine 5 | 1 4 Core . | . . Reactor . | . . Propulsion 4 | 2 2 Treads 2 | . 2 Leg 2 | 2 . Wheel . | . . Hover . | . . Flight . | . . Utility 2 | 1 1 Device . | . . Storage 2 | 1 1 Processor . | . . Hackware . | . . Protection . | . . Artifact . | . . Weapon 5 | 2 3 Energy Gun 4 | 1 3 Energy Cannon . | . . Ballistic Gun 1 | 1 . Ballistic Cannon . | . . Launcher . | . . Special Weapon . | . . Impact Weapon . | . . Slashing Weapon . | . . Piercing Weapon . | . . Special Melee Weapon . | . . Unidentified Prototypes . | . . Corrupted Parts 1 | . 1 System Corruption 1 | . 1 Parts Lost 8 | . 8 Power 2 | . 2 Propulsion 2 | . 2 Utility . | . . Weapon 4 | . 4 Highest Loss Streak 5 | . 5 To Critical Strikes . | . . Average Backups 10 | 2 10 Power 3 | . 3 Propulsion 2 | 1 2 Utility 1 | . 1 Weapon 3 | . 3 Tool/Special . | . . Unused Backups 9 | . 9 Power 3 | . 3 Propulsion 1 | . 1 Utility 2 | . 2 Weapon 3 | . 3 Tool/Special . | . . Average Slot Usage (%) 97 | . 97 Engine 13 | . 13 Treads 25 | . 25 Leg 2 | . 2 Storage 26 | . 26 Energy Gun 16 | . 16 Ballistic Gun 11 | . 11 Peak Build Rating 8 | 6 8 Average Rating 7 | 4 7 On Entrance 3 | . 6 Avg Prop Armor Cover (%) . | . . Naked Turns . | . . Heaviest Build 94 | 10 94 Greatest Support 40 | 20 40 Greatest Overweight (x) 2 | 1 2 Average Overweight (x) 1 | . 1 Largest Inventory Capacity 25 | 8 25 Average Capacity 22 | 6 23 Most Carried 15 | 4 15 Average Carried 10 | 2 10 Final Capacity 25 | 8 25 Final Carried 15 | 4 15 Class Distribution -------------------- 100% | Mutant Dominant Class ---------------- Mutant | -10/Materials Resources | -11 -10 ----------- Run | Yrd Mat Matter Collected 399 | 260 139 Remotely . | . . Salvage Created 761 | . 761 Parts 44 | . 44 Haulers Intercepted 1 | . 1 Recyclers Shooed 2 | . 2 Parts Field Recycled . | . . Retrieved Matter . | . . Parts Self-Destructed . | . . Prevented . | . . Parts Restored . | . . Kills | -11 -10 ------- Run | Yrd Mat Combat Hostiles Destroyed 17 | . 17 Guns 16 | . 16 AOE 1 | . 1 Classes Destroyed 5 | . 5 Hauler 1 | . 1 Recycler 1 | . 1 Watcher 1 | . 1 Swarmer 6 | . 6 Grunt 11 | . 11 Best Kill Streak 4 | . 4 Combat Bots Only 3 | . 3 Max Kills in Single Turn 2 | . 2 Gunslinging . | . . Exploded 1 | . 1 Melee . | . . Uniques/NPCs Destroyed . | . . Combat | -11 -10 -------- Run | Yrd Mat Hostile Shots Fired 104 | . 104 Missed 24 | . 24 Hits 80 | . 80 Projectile 80 | . 80 Critical Strikes 2 | . 2 Damage Taken 1137 | . 1137 Core 277 | . 277 Absorbed by Shields . | . . Core Remaining (%) 100 | 100 . Volleys Fired 59 | . 59 Largest 2 | . 2 Hottest 80 | . 80 Shots Fired 117 | . 117 Gun 117 | . 117 Cannon . | . . Launcher . | . . Special . | . . Kinetic 49 | . 49 Thermal 27 | . 27 Explosive . | . . Electromagnetic 41 | . 41 Robot Hit Streak 7 | . 7 Robot Miss Streak 5 | . 5 Penetration Max . | . . Secondary Targets 2 | . 2 Max Gunslinging Chain 1 | . 1 Shots Hit Robots 74 | . 74 Core Hits 37 | . 37 Critical Kills 1 | . 1 Critical Parts Destroyed . | . . Critical Strikes 1 | . 1 Destroy 1 | . 1 Melee Attacks . | . . Impact . | . . Slashing . | . . Piercing . | . . Sneak Attacks . | . . Combat Hostiles . | . . Follow-up Attacks . | . . Damage Inflicted 888 | . 888 Guns 834 | . 834 Cannons . | . . Explosions 48 | . 48 Melee . | . . Ramming 6 | . 6 Kinetic 256 | . 256 Thermal 233 | . 233 Explosive . | . . Electromagnetic 393 | . 393 Impact . | . . Slashing . | . . Piercing . | . . Highest Corruption 8 | . 8 Average Corruption 3 | . 3 Corruption Purged . | . . Corruption Blocked . | . . Effects 12 | . 12 Message Errors 3 | . 3 Matter Fused 1 | . 1 Heat Flow Errors 2 | . 2 Energy Discharges 4 | . 4 Data Loss (minor) 1 | . 1 Weapon Failures 1 | . 1 Overload Shots . | . . Overflow Damage 84 | . 84 Projectiles . | . . Explosions 84 | . 84 Melee . | . . Knockbacks . | . . Impact . | . . Kinetic . | . . Secondary . | . . Self-Inflicted Damage 254 | . 254 Shots 3 | . 3 Rammed 1 | . 1 Targets Rammed 1 | . 1 Kicked . | . . Crushed . | . . Highest Temperature 226 | . 226 Average Temperature 58 | . 58 Received Heat Transfer 411 | . 411 Siege Activations . | . . Martial Activations . | . . Shielding Activations . | . . Robots Disrupted . | . . Combat Hostiles . | . . Robots Corrupted . | . . Combat Hostiles . | . . Parts Fried . | . . Impact Corruptions . | . . Robots Melted . | . . Combat Hostiles . | . . Parts Melted 1 | . 1 Heat Transferred 475 | . 475 Parts Sabotaged . | . . Parts Stolen . | . . Parts Stripped . | . . Power Chain Reactions 1 | . 1 Alert | -11 -10 ------- Run | Yrd Mat Maximum Alert Level . | . . Low Security (%) 100 | 100 100 Level 1 . | . . Level 2 . | . . Level 3 . | . . Level 4 . | . . Level 5 . | . . High Security . | . . Max Security . | . . Peak Influence 150 | . 150 Initial . | . . Average 56 | . 59 Influence Increases 556 | . 556 Destroy 0b10 Robot/C 340 | . 340 Destroy 0b10 Robot/NC 15 | . 15 Destroy Leader 84 | . 84 Successful Hack 37 | . 37 Select Force Hacks 30 | . 30 Disable Machine 45 | . 45 Destroy Structure 5 | . 5 Influence Decreases 457 | . 457 Time Decay 387 | . 387 Lost Part 70 | . 70 Squads Dispatched 4 | . 4 Investigation 3 | . 3 Extermination . | . . Reinforcement 1 | . 1 Assault . | . . Garrison . | . . Intercept . | . . Searches Triggered . | . . Construction Impeded . | . . Haulers Reinforced . | . . Active Scanning Responses . | . . Cargo Convoy Interrupts . | . . Stealth | -11 -10 --------- Run | Yrd Mat Distress Signals 4 | . 4 Communications Jammed . | . . Distress Signals . | . . Times Spotted 25 | . 25 Peak Tracking Total 4 | . 4 Tactical Retreats . | . . Traps | -11 -10 ------- Run | Yrd Mat Traps Triggered 4 | . 4 Indirectly . | . . Trap Hack Attempts . | . . Triggered . | . . Disarmed . | . . Reprogrammed . | . . Reused . | . . Traps Extracted . | . . Installed . | . . Triggered . | . . Machines | -11 -10 ---------- Run | Yrd Mat Machines Disabled 3 | . 3 Max in Single Turn 2 | . 2 Machines Repaired . | . . Machines Dismantled . | . . Machines Sabotaged . | . . Overloaded Fab Kills . | . . Hacking | -11 -10 --------- Run | Yrd Mat Machines Accessed 7 | . 7 Terminals 5 | . 5 Fabricators . | . . Repair Stations . | . . Recycling Units 2 | . 2 Scanalyzers . | . . Garrison Access . | . . Total Hacks 18 | . 18 Successful 10 | . 10 Failed 8 | . 8 Catastrophic 2 | . 2 Database Lockouts . | . . Manual 5 | . 5 Terminals 13 | . 13 Fabricators . | . . Repair Stations . | . . Recycling Units 5 | . 5 Scanalyzers . | . . Garrison Access . | . . Terminal Hacks 7 | . 7 Prototype ID Bank 3 | . 3 Hauler Manifests 2 | . 2 Registered Components 1 | . 1 Zone Layout 1 | . 1 Fabricator Hacks . | . . Repair Station Hacks . | . . Recycling Unit Hacks 2 | . 2 Retrieve Components 2 | . 2 Scanalyzer . | . . Garrison Access Hacks . | . . Unauthorized Hacks 1 | . 1 Terminals . | . . Fabricators . | . . Repair Stations . | . . Recycling Units 1 | . 1 Tunnel 1 | . 1 Scanalyzers . | . . Garrison Access . | . . Data Cores Recovered . | . . Used . | . . Hacking Detections 5 | . 5 Full Trace Events 2 | . 2 Feedback Events 1 | . 1 Corruption 1 | . 1 Feedback Blocked . | . . Robot Schematics Acquired . | . . Robots Built . | . . Authchips . | . . Time . | . . Total Robot Build Rating . | . . Part Schematics Acquired . | . . Parts Built . | . . Authchips . | . . Time . | . . Total Part Build Rating . | . . Part Studies Acquired . | . . Parts Repaired . | . . Time . | . . Parts Recycled . | . . Recycled Matter . | . . Retrieved Matter . | . . Retrieved Components 20 | . 20 Parts Scanalyzed . | . . Part Schematics Acquired . | . . Parts Damaged . | . . Bothacking | -11 -10 ------------ Run | Yrd Mat Used RIF Installer . | . . Robots Hacked . | . . Non-combat . | . . Combat . | . . Robot Hacks Applied . | . . Relay Couplers Released . | . . Fabnet Peak Effective % . | . . Robots Rewired . | . . Allies Hacked . | . . Hacks Repelled . | . . Allies | -11 -10 -------- Run | Yrd Mat Total Allies . | . . Largest Group . | . . Highest-Rated Group . | . . Highest-Rated Ally . | . . Total Orders . | . . Ally Attacks . | . . Total Damage . | . . Kills . | . . Allies Corrupted . | . . Allies Melted . | . . Intel | -11 -10 ------- Run | Yrd Mat Active Infowar (turns) . | . . Robot Analysis Total . | . . Derelict Logs Recovered . | . . Drone Launches . | . . Drone Recoveries . | . . Exploration | -11 -10 ------------- Run | Yrd Mat Turns Passed 1226 | 69 1157 Spaces Moved 380 | 50 330 Core 6 | 6 . Treads 264 | . 264 Legs 110 | 44 66 Wheels . | . . Hover . | . . Flight . | . . Fastest Speed 50 | 50 120 Average Speed 258 | 113 280 Slowest Speed 320 | 120 320 Overloaded Moves . | . . Propulsion Burnouts . | . . Robots Hopped . | . . Potential Cave-ins . | . . Cave-ins Triggered . | . . Exploration Rate (%) 27 | 4 51 Regions Visited 1 Branch Regions . Pre-discovered Areas 1 | . 1 Known Exits Taken . | . . Unknown Exits Taken 1 | 1 . Scrap Searched . | . . Spaces Dug . | . . Terrain Destroyed 4 | . 4 Melee . | . . Projectile . | . . AOE 4 | . 4 Terrain Rammed . | . . Walls Destroyed . | . . Machines Disabled . | . . Actions | -11 -10 --------- Run | Yrd Mat Total 511 | 59 452 Wait 39 | . 39 Move 379 | 49 330 Hop . | . . Pick Up 15 | 4 11 Fast Attach 8 | 6 2 Attach 3 | . 3 Detach 1 | . 1 Swap 6 | . 6 Drop . | . . Fire 59 | . 59 Melee . | . . Ram . | . . Kick . | . . Crush 1 | . 1 Escape Stasis . | . . Rewire . | . . Trap . | . . Miscellaneous . | . . Route ------- -11/Scrapyard -10/Materials (discovered 2 exits: [*Mat x2]) History --------- Turn | Location | Event 17 | -11/Scrapyard | Discovered new exit (range 15) 70 | -11/Scrapyard | Entered Materials 305 | -10/Materials | Build established: Mutant 481 | -10/Materials | Discovered new exit (range 5) 1154 | -10/Materials | Discovered new exit (range 8) 1222 | -10/Materials | Core integrity fell below 50% 1227 | -10/Materials | Destroyed self via exploding Nuclear Reactor Last Messages --------------- 01135_ The floor emits a surge of raw power. 01135_ System corrupted (+2). 01138_ U-05 Engineer lays Concrete. 01154_ EXIT=FOUND 01194_ System corrupted: Matter fused (-7). 01214_ System corrupted: Energy discharge (-61). 01217_ Critical hit (Burn: +37). 01218_ System corrupted: EM Pulse Gun failed to cycle. 01223_ Lgt. Treads destroyed. 01227_ Chain reaction triggered in Lgt. Nuclear Core. 01227_ G-47 Trooper destroyed. 01227_ Nuclear Reactor explodes. 01227_ EM Pulse Gun destroyed. 01227_ Destroyed EM Pulse Gun. 01227_ EM Pulse Gun destroyed. 01227_ Destroyed EM Pulse Gun. 01227_ Ion Engine destroyed. 01227_ Destroyed Ion Engine. 01227_ Lgt. Treads destroyed. 01227_ Destroyed Lgt. Treads. Map ----- +----------------------------------------------------+ | | | | | | | | | | | | | | | | | | | | | | | | | | | | | | | | | | | | | ???????????????#############??????????????????? | | ???????????????# #??????????????????? | | ??##########???# #??????????????????? | | ??# #???# #??????????????????? | | ??# """ #???# #??????????????????? | | ??# """ #???# #??????????????????? | | ??# """ #???# #??????????????????? | | ??# = * #???# @ #??????????????????? | | ??#"""!! #???####;;; ;###########+##????????? | | ??#"Y=== #?????# ???????? | | ??#"""* #?????# < ???????? | | ??# =![ #?????# ???????? | | #######/####?????##### ############?????????? | | # T # %=######??????# # = #????????????? | | # # # #??????# # """ #????????????? | | #% # # ######## + """ #????????????? | | # + # # # """ #????????????? | | # # # + # #????????????? | | # # # ! # #########????????????? | | # # %###### #????????????????????? | | #!= # !! k ?????????????? | | #!= # % !] ?????????????? | | ###### !] ?????????????? | | ?# #?# %%############# #######??????????????? | | ?# #?# #???????????# #????????????????????? | | ###### %#####???????# #????????????????????? | | # # !##??????? !#???????????????????? | | # T # !#??????? #???????????????????? | | # # !#??????? T +???????????????????? | | # !![#% !#??????? #???????????????????? | | # !!=+% !#??????? ? #???????????????????? | | # # !##???????##?##????????????????????? | +----------------------------------------------------+ Best States ------------- Heat Dissipation 25 Energy Generation 10 Energy Capacity 250 Matter Stores 300 Matter Capacity 300 Sight Range 16 Terrain Scan Density 10 Evasion (%) 55 Recoil Reduction 2 Item Schematics ----------------- None Robot Schematics ------------------ None Fabricated ------------ Nothing Repaired ---------- Nothing Studied --------- None Alien Tech Used ----------------- None Achievements -------------- None Challenges ------------ None Game ------ Seed ExoskeletonActuatorLink Manual? 0 Play Time 00:09:01 Cumulative 171.6 hours Start 2025.12.13 @ 15:09:35 End 2025.12.13 @ 15:19:59 Sessions 1 Manual Loads 0 Difficulty Rogue Special Mode None Game No. 257 Rogue 257 Adventurer 0 Explorer 0 Win Type - Total 1 Types 1/0/0/0/0/0/0/0/0/0 Lore% 60 Gallery% 58 Achievement% 49 Wizard Run 0 Options --------- Layout 0 ASCII 0 Keyboard 0 Movement Numpad Keybinds 0 Fullscreen 1 Font 24/Smallcaps Map View 76x50 Zoom Use 0% Tactical HUD 1 Map Filters NONE Filters NONE Steam 1 RUN: af538a7c-d2b8-41bf-983c-712e8afe7446